bitfinex/quotes_BTCUSD_20250410
["timestamp","ask_amount","ask_price","bid_price","bid_amount"]
[1744312395370,0.00246255,79429.0,79428.0,0.3898]
[1744312395644,0.00246255,79429.0,79428.0,0.60439]
[1744312395817,0.00246255,79429.0,79428.0,0.5918]
[1744312396030,0.01259,79427.0,79419.0,0.251826]
[1744312396225,0.01259,79427.0,79418.0,0.012591]
[1744312396522,0.00246255,79429.0,79428.0,0.26439]
[1744312396727,0.00246255,79429.0,79428.0,0.39129758]
[1744312397687,0.00246255,79429.0,79428.0,0.73129758]
[1744312398680,0.00246255,79429.0,79428.0,0.88019758]
[1744312399900,0.00246255,79429.0,79428.0,1.42418831]
[1744312400110,0.00246255,79429.0,79428.0,1.37121931]
[1744312400506,5.5e-07,79429.0,79428.0,1.37121931]
[1744312400706,0.0003362,79450.0,79449.0,0.604319]
[1744312400910,0.0003362,79450.0,79449.0,0.99842658]
[1744312403229,0.0003362,79450.0,79449.0,0.94902658]
[1744312403432,0.0003362,79450.0,79449.0,0.90322658]
[1744312403838,0.0003362,79450.0,79449.0,0.34]
[1744312404037,0.0003362,79450.0,79449.0,0.604319]
[1744312405037,0.0003362,79450.0,79449.0,0.34]
[1744312405249,0.0003362,79450.0,79449.0,0.591733]
[1744312405853,0.2646522,79450.0,79449.0,0.34]
[1744312406053,0.2646522,79450.0,79444.0,0.17192]
[1744312406054,0.264333,79445.0,79444.0,0.17192]
[1744312406455,0.28788372,79450.0,79444.0,0.17192]
[1744312406456,0.02356772,79450.0,79449.0,0.264319]
[1744312406683,0.02356772,79450.0,79449.0,0.604319]
[1744312408582,0.0003362,79450.0,79449.0,0.604319]
[1744312410208,0.0003362,79450.0,79449.0,0.73122658]
[1744312410645,0.0003362,79450.0,79449.0,0.34]
[1744312410848,0.2520662,79450.0,79449.0,0.34]
[1744312411133,0.0003362,79450.0,79441.0,0.012587]
[1744312411290,0.0129222,79450.0,79441.0,0.012587]
[1744312411491,0.0003362,79450.0,79446.0,0.012587]
[1744312411696,0.0232793,79449.0,79446.0,0.012587]
[1744312411901,0.0003362,79450.0,79442.0,0.012587]
[1744312411902,0.0232793,79448.0,79445.0,0.26433]
[1744312412100,0.0232793,79448.0,79447.0,0.264327]
[1744312413087,0.0232793,79448.0,79423.0,0.1]
[1744312413088,0.012588,79437.0,79423.0,0.1]
[1744312413267,0.012589,79433.0,79426.0,0.12690758]
[1744312413495,0.251775,79436.0,79427.0,0.01259]
[1744312413675,0.0232793,79432.0,79431.0,0.25179]
[1744312413848,0.0232793,79432.0,79431.0,0.264379]
[1744312414054,0.03493317,79432.0,79431.0,0.264379]
[1744312414255,0.03493317,79432.0,79427.0,0.01259]
[1744312414498,0.03493317,79432.0,79431.0,0.264379]
[1744312414699,0.01165387,79432.0,79431.0,0.264379]
[1744312415227,0.03498598,79432.0,79431.0,0.264379]
[1744312415773,0.03498598,79432.0,79431.0,0.25179]
[1744312416177,0.03498598,79432.0,79431.0,0.264379]
[1744312417408,0.264383,79431.0,79426.0,0.34]
[1744312417561,0.251799,79429.0,79426.0,0.591804]
[1744312417766,0.03498598,79428.0,79425.0,0.251809]
[1744312417970,0.03498598,79428.0,79427.0,0.251803]
[1744312418197,0.03498598,79428.0,79425.0,0.01259]
[1744312418408,0.01165387,79427.0,79426.0,0.251803]
[1744312418615,0.03498598,79427.0,79426.0,0.251803]
[1744312418821,0.03498598,79427.0,79425.0,0.264399]
[1744312419026,0.03498598,79427.0,79426.0,0.264396]
[1744312419337,0.02332434,79427.0,79424.0,0.251812]
[1744312419560,0.02332434,79427.0,79423.0,0.01259]
[1744312419768,0.251796,79430.0,79426.0,0.251806]
[1744312420129,0.02332271,79429.0,79426.0,0.251806]
[1744312420329,0.03498441,79429.0,79427.0,0.01259]
[1744312420532,0.03498441,79429.0,79428.0,0.2518]
[1744312420745,0.0116617,79429.0,79428.0,0.2518]
[1744312420955,0.0116617,79429.0,79428.0,0.26439]
[1744312421380,0.0349869,79429.0,79428.0,0.73129758]
[1744312421581,0.0349869,79429.0,79428.0,0.78089758]
[1744312421784,0.0116617,79429.0,79428.0,0.78089758]
[1744312421956,0.0116617,79429.0,79428.0,0.83129758]
[1744312422358,0.251758,79442.0,79439.0,0.251763]
[1744312422755,0.02332693,79441.0,79440.0,0.25176]
[1744312423458,0.0349913,79441.0,79440.0,0.264348]
[1744312423860,0.0349913,79441.0,79440.0,0.39125558]
[1744312424319,0.01166437,79441.0,79440.0,0.39125558]
[1744312424498,0.0003362,79450.0,79446.0,0.012587]
[1744312424727,2e-07,79450.0,79449.0,0.604319]
[1744312425003,4e-07,79459.0,79458.0,0.75039]
[1744312425161,8e-07,79461.0,79460.0,0.604282]
[1744312425360,8e-07,79461.0,79460.0,0.73118958]
[1744312425612,0.00012716,79461.0,79460.0,0.73118958]
[1744312427102,0.00012716,79461.0,79460.0,0.7438698]
[1744312427666,0.00012716,79461.0,79460.0,0.78888222]
[1744312427798,0.00012716,79461.0,79460.0,0.9157898]
[1744312428811,0.00012716,79461.0,79460.0,0.90310958]
[1744312434112,0.00012716,79461.0,79460.0,0.73118958]
[1744312434229,0.00012716,79461.0,79460.0,0.34]
[1744312434433,0.00012716,79461.0,79460.0,0.264282]
[1744312435109,0.00012716,79461.0,79460.0,0.73118958]
[1744312435970,0.00012716,79461.0,79460.0,0.604282]
[1744312436365,0.00012716,79461.0,79460.0,0.73118958]
[1744312439301,0.00012716,79461.0,79457.0,0.34]
[1744312439565,0.00012716,79461.0,79460.0,0.264282]
[1744312440123,0.00012716,79461.0,79459.0,0.251701]
[1744312440330,0.00012716,79461.0,79460.0,0.251698]
[1744312440715,0.00012716,79461.0,79460.0,0.264282]
[1744312441144,0.00012716,79461.0,79460.0,0.251698]
[1744312441385,0.00012716,79461.0,79460.0,0.264282]
[1744312442058,0.00012716,79461.0,79458.0,0.184385]
[1744312442059,0.01271116,79461.0,79458.0,0.1718]
[1744312442249,0.00012716,79461.0,79438.0,0.1]
[1744312442458,0.0472,79458.0,79444.0,0.251746]
[1744312442657,0.012586,79449.0,79443.0,0.012587]
[1744312442949,0.251739,79448.0,79444.0,0.251749]
[1744312443153,0.264347,79441.0,79436.0,0.012588]
[1744312443381,0.0472,79458.0,79427.0,0.0127578]
[1744312443382,0.012588,79437.0,79427.0,0.0127578]
[1744312443583,0.251788,79432.0,79427.0,0.0001678]
[1744312443796,0.01259,79428.0,79427.0,0.0001678]
[1744312443997,0.15114157,79428.0,79427.0,0.0001678]
[1744312444150,0.17443526,79428.0,79427.0,0.0001678]
[1744312444355,0.03493768,79428.0,79427.0,0.0127578]
[1744312445020,0.01164399,79428.0,79427.0,0.0127578]
[1744312445225,0.012587,79442.0,79435.0,0.012588]
[1744312445512,0.251745,79446.0,79437.0,0.012588]
[1744312445669,0.012587,79443.0,79435.0,0.012588]
[1744312445907,0.251772,79437.0,79434.0,0.251778]
[1744312446209,0.26436,79437.0,79432.0,0.264373]
[1744312446412,0.251779,79435.0,79432.0,0.251784]
[1744312446554,0.01259,79428.0,79427.0,0.0001678]
[1744312446773,0.13949758,79428.0,79427.0,0.0001678]
[1744312447134,0.18489758,79428.0,79427.0,0.0001678]
[1744312447674,0.20816501,79428.0,79427.0,0.0001678]
[1744312448320,0.2343393,79428.0,79427.0,0.0001678]
[1744312448955,0.21979845,79428.0,79427.0,0.0001678]
[1744312449286,0.01259,79428.0,79427.0,0.0001678]
[1744312449486,0.012588,79436.0,79427.0,0.0001678]
[1744312449695,0.251791,79431.0,79427.0,0.0001678]
[1744312449904,0.251778,79435.0,79431.0,0.264378]
[1744312450099,0.251778,79435.0,79430.0,0.264381]
[1744312450305,0.251797,79429.0,79427.0,0.0001678]
[1744312450631,0.26439,79428.0,79427.0,0.0001678]
[1744312451014,0.45393843,79428.0,79427.0,0.0001678]
[1744312451267,0.50163843,79428.0,79427.0,0.0001678]
[1744312451428,0.53650121,79428.0,79427.0,0.0001678]
[1744312452050,0.61211121,79428.0,79401.0,0.002]
[1744312452278,0.264476,79402.0,79401.0,0.00212615]
[1744312453691,0.25188,79403.0,79401.0,0.00212615]
[1744312454027,0.264473,79403.0,79401.0,0.00212615]
[1744312454470,0.012594,79402.0,79401.0,0.00212615]
[1744312455805,0.01259,79423.0,79412.0,0.012592]
[1744312456037,0.01259,79424.0,79419.0,0.251828]
[1744312456229,0.01259,79424.0,79418.0,0.25183]
[1744312456230,0.251827,79420.0,79416.0,0.251836]
[1744312456428,0.012591,79419.0,79413.0,0.264438]
[1744312456637,0.01259,79424.0,79418.0,0.012591]
[1744312456834,0.4191,79427.0,79425.0,0.251809]
[1744312457010,0.4191,79427.0,79424.0,0.01259]
[1744312457213,0.670904,79427.0,79423.0,0.251809]
[1744312457575,0.670904,79427.0,79424.0,0.251812]
[1744312457838,0.670904,79427.0,79423.0,0.251809]
[1744312458048,0.4191,79427.0,79422.0,0.01259]
[1744312458272,0.4191,79427.0,79402.0,0.012594]
[1744312458273,0.012593,79408.0,79402.0,0.012594]
[1744312458401,0.251851,79413.0,79406.0,0.352593]
[1744312459249,0.012592,79414.0,79406.0,0.352593]
[1744312459250,0.012592,79414.0,79408.0,0.251863]
[1744312459457,0.251873,79405.0,79402.0,0.00012615]
[1744312459618,0.012592,79413.0,79408.0,0.251862]
[1744312459814,0.012592,79410.0,79402.0,0.34012615]
[1744312460014,0.012592,79410.0,79402.0,0.59200515]
[1744312460015,0.251876,79405.0,79402.0,0.59200515]
[1744312460236,0.25186,79409.0,79404.0,0.251876]
[1744312460440,0.251866,79408.0,79404.0,0.251876]
[1744312460758,0.251861,79409.0,79406.0,0.251867]
[1744312460958,0.251851,79413.0,79409.0,0.264452]
[1744312461167,0.251851,79412.0,79409.0,0.251859]
[1744312461374,0.251847,79413.0,79405.0,0.251871]
[1744312461671,0.251846,79414.0,79408.0,0.264453]
[1744312461884,0.251851,79412.0,79406.0,0.264459]
[1744312462084,0.251876,79404.0,79402.0,0.00012615]
[1744312462591,0.012592,79412.0,79404.0,0.251873]
[1744312462592,0.264459,79409.0,79404.0,0.251873]
[1744312463081,0.251867,79407.0,79404.0,0.251876]
[1744312463309,0.251868,79407.0,79404.0,0.251876]
[1744312463691,0.264456,79408.0,79405.0,0.251872]
[1744312463894,0.251867,79407.0,79404.0,0.251876]
[1744312464072,0.264456,79409.0,79404.0,0.251876]
[1744312464514,0.251863,79409.0,79404.0,0.251876]
[1744312464751,0.012593,79408.0,79403.0,0.012593]
[1744312465028,0.251865,79408.0,79404.0,0.012593]
[1744312465230,0.012593,79409.0,79403.0,0.012593]
[1744312465530,0.251863,79408.0,79405.0,0.251872]
[1744312465830,0.25186,79409.0,79406.0,0.251869]
[1744312465978,0.251863,79408.0,79406.0,0.251869]
[1744312466381,0.25186,79409.0,79402.0,0.25200615]
[1744312467234,0.251873,79405.0,79402.0,0.25200715]
[1744312467462,0.251877,79404.0,79402.0,0.00012615]
[1744312467574,0.012592,79415.0,79403.0,0.012593]
[1744312467779,0.012591,79421.0,79414.0,0.012592]
[1744312467973,0.43169,79427.0,79417.0,0.012591]
[1744312468176,0.251825,79421.0,79418.0,0.251832]
[1744312468615,0.251826,79420.0,79416.0,0.251836]
[1744312468822,0.01259,79424.0,79418.0,0.012591]
[1744312469029,0.251823,79421.0,79415.0,0.012592]
[1744312469335,0.251826,79420.0,79416.0,0.251835]
[1744312469736,0.251826,79420.0,79417.0,0.251835]
[1744312469938,0.251823,79421.0,79418.0,0.25183]
[1744312470140,0.251823,79421.0,79417.0,0.251835]
[1744312470340,0.251828,79420.0,79417.0,0.251835]
[1744312470573,0.251788,79432.0,79426.0,0.251806]
[1744312470724,0.251789,79432.0,79429.0,0.251797]
[1744312471109,0.251796,79430.0,79427.0,0.251797]
[1744312471339,0.251792,79431.0,79428.0,0.251799]
[1744312472133,0.251784,79434.0,79429.0,0.012589]
[1744312472343,0.012586,79450.0,79441.0,0.012587]
[1744312472545,0.012586,79452.0,79447.0,0.251738]
[1744312472886,0.012586,79451.0,79445.0,0.012587]
[1744312473058,0.251734,79449.0,79446.0,0.25174]
[1744312473634,0.01167375,79450.0,79449.0,0.251733]
[1744312473805,0.00012634,79454.0,79453.0,0.251721]
[1744312474011,0.00012634,79454.0,79453.0,0.264307]
[1744312474585,0.00012634,79454.0,79453.0,0.604307]
[1744312474785,0.00012634,79454.0,79453.0,0.776107]
[1744312475326,0.00012634,79454.0,79453.0,0.95061458]
[1744312475465,0.00012634,79454.0,79453.0,0.99871458]
[1744312476315,0.00012634,79454.0,79453.0,0.95061458]
[1744312476892,0.00012634,79454.0,79453.0,0.90301458]
[1744312481124,0.00012634,79454.0,79453.0,0.776107]
[1744312481871,0.00012634,79454.0,79453.0,0.90301458]
[1744312485413,0.00012634,79454.0,79453.0,0.95211458]
[1744312485655,0.00012634,79454.0,79453.0,1.05211458]
[1744312487887,0.00012634,79454.0,79453.0,0.46690758]
[1744312488043,0.00012634,79454.0,79446.0,0.351742]
[1744312488044,0.01271134,79454.0,79447.0,0.264323]
[1744312488247,0.00012634,79454.0,79451.0,0.251725]
[1744312488454,0.25184434,79454.0,79451.0,0.251727]
[1744312488650,0.012586,79449.0,79438.0,0.352588]
[1744312488851,0.012586,79450.0,79443.0,0.012587]
[1744312489197,0.00012634,79454.0,79444.0,0.012587]
[1744312489198,0.012586,79453.0,79444.0,0.012587]
[1744312489375,0.012586,79450.0,79445.0,0.251745]
[1744312489571,0.251735,79449.0,79445.0,0.251745]
[1744312489818,0.251738,79448.0,79445.0,0.251745]
[1744312490020,0.251735,79449.0,79445.0,0.251745]
[1744312490366,0.012586,79448.0,79444.0,0.34]
[1744312490742,0.012587,79447.0,79437.0,0.17172]
[1744312490912,0.012587,79445.0,79440.0,0.012588]
[1744312491275,0.264336,79444.0,79439.0,0.264352]
[1744312491474,0.251756,79442.0,79440.0,0.251762]
[1744312491675,0.251765,79439.0,79437.0,0.17172]
[1744312491875,0.251756,79442.0,79437.0,0.184308]
[1744312492109,0.251762,79440.0,79437.0,0.184308]
[1744312492450,0.251722,79453.0,79441.0,0.012587]
[1744312492688,0.012586,79448.0,79442.0,0.251755]
[1744312492883,0.251748,79445.0,79440.0,0.012588]
[1744312493062,0.251748,79445.0,79441.0,0.251756]
[1744312493383,0.251714,79456.0,79449.0,0.012586]
[1744312493583,0.251705,79458.0,79453.0,0.264307]
[1744312493838,0.0129208,79459.0,79450.0,0.012586]
[1744312494124,0.01271134,79454.0,79449.0,0.251723]
[1744312494326,0.251721,79453.0,79450.0,0.25173]
[1744312494651,0.00012634,79454.0,79453.0,0.251721]
[1744312494821,0.00012634,79454.0,79453.0,0.264307]
[1744312495685,0.00012634,79454.0,79453.0,0.73121458]
[1744312496312,0.00012634,79454.0,79453.0,0.74064588]
[1744312497289,0.00012634,79454.0,79453.0,0.78644588]
[1744312498338,3.4e-07,79454.0,79453.0,0.78644588]
[1744312499401,3.4e-07,79454.0,79453.0,0.95078673]
[1744312501512,3.4e-07,79454.0,79453.0,1.03624588]
[1744312501714,3.4e-07,79454.0,79453.0,0.74064588]
[1744312501911,3.4e-07,79454.0,79453.0,0.84064588]
[1744312502601,3.4e-07,79454.0,79453.0,0.13949358]
[1744312502764,3.4e-07,79454.0,79453.0,0.73121458]
[1744312503161,3.4e-07,79454.0,79453.0,0.83121458]
[1744312503758,3.4e-07,79454.0,79453.0,0.73121458]
[1744312504152,8e-07,79466.0,79465.0,0.604267]
[1744312504468,4.8e-07,79466.0,79465.0,2.24579458]
[1744312505473,4.8e-07,79466.0,79465.0,2.31033543]
[1744312505674,4.8e-07,79466.0,79465.0,2.26033543]
[1744312506603,4.8e-07,79466.0,79465.0,2.24579458]
[1744312506756,4.8e-07,79466.0,79465.0,2.34579458]
[1744312507571,4.8e-07,79466.0,79465.0,2.24579458]
[1744312507776,4.8e-07,79466.0,79465.0,2.34579458]
[1744312508892,4.8e-07,79466.0,79465.0,2.36033543]
[1744312509027,4e-07,79477.0,79476.0,0.80423]
[1744312509228,0.0003358,79484.0,79476.0,0.80423]
[1744312509229,4e-07,79484.0,79483.0,0.264207]
[1744312509477,2e-07,79486.0,79485.0,0.2]
[1744312509679,0.251516,79518.0,79492.0,0.604176]
[1744312509825,0.251536,79512.0,79492.0,0.73108358]
[1744312510025,0.00075657,79493.0,79492.0,0.73108358]
[1744312510476,0.00075657,79493.0,79492.0,0.83108358]
[1744312510774,0.00075657,79493.0,79492.0,0.73108358]
[1744312511396,0.00075657,79493.0,79492.0,0.74390976]
[1744312511597,0.00075657,79493.0,79492.0,0.84390976]
[1744312514256,0.00075657,79493.0,79492.0,0.74390976]
[1744312516775,0.00075657,79493.0,79492.0,0.46690758]
[1744312516976,0.00075657,79493.0,79490.0,0.2516]
[1744312516977,0.25235057,79493.0,79490.0,0.2516]
[1744312517271,0.00075657,79493.0,79492.0,0.34]
[1744312517510,0.00075657,79493.0,79492.0,0.73108358]
[1744312521883,0.00075657,79493.0,79488.0,0.01248465]
[1744312522083,0.2642,79485.0,79483.0,0.17156]
[1744312522295,0.251617,79486.0,79483.0,0.29846758]
[1744312522637,0.00075657,79493.0,79492.0,0.264176]
[1744312522767,0.00075657,79493.0,79492.0,0.39108358]
[1744312523204,0.00075657,79493.0,79492.0,0.73108358]
[1744312523420,0.00075657,79493.0,79492.0,0.83108358]
[1744312523726,0.00075657,79493.0,79492.0,0.73108358]
[1744312524074,0.00075657,79493.0,79492.0,0.90260358]
[1744312524484,0.00075657,79493.0,79492.0,0.95020358]
[1744312525054,0.00075657,79493.0,79492.0,1.95579758]
[1744312525245,0.00075657,79493.0,79492.0,1.87990958]
[1744312525626,0.00075657,79493.0,79492.0,0.90260358]
[1744312526149,2.7e-07,79498.0,79497.0,0.36416]
[1744312526357,2.7e-07,79498.0,79497.0,2.13980843]
[1744312526859,0.00012651,79498.0,79497.0,2.13980843]
[1744312527013,0.01196627,79523.0,79516.0,0.251521]
[1744312527219,0.012574,79526.0,79519.0,0.25151]
[1744312527220,0.251496,79524.0,79519.0,0.25151]
[1744312527420,0.00012619,79523.0,79519.0,0.251511]
[1744312527644,0.251504,79522.0,79517.0,0.012575]
[1744312527845,0.251504,79522.0,79518.0,0.251514]
[1744312528164,0.251504,79522.0,79519.0,0.251511]
[1744312528516,0.26420519,79523.0,79516.0,0.29826758]
[1744312528741,0.012575,79522.0,79516.0,0.54978658]
[1744312528941,0.251505,79521.0,79517.0,0.251516]
[1744312529325,0.251511,79520.0,79517.0,0.251516]
[1744312529528,0.251511,79520.0,79516.0,0.31084358]
[1744312529823,0.251511,79520.0,79518.0,0.251515]
[1744312529955,0.251506,79521.0,79518.0,0.251515]
[1744312530151,0.00012619,79523.0,79519.0,0.251512]
[1744312530362,0.00012619,79523.0,79522.0,0.251502]
[1744312531185,0.00012619,79523.0,79522.0,0.264077]
[1744312532691,0.00012619,79523.0,79521.0,0.012575]
[1744312532899,0.00012619,79523.0,79520.0,0.251505]
[1744312533063,0.00012619,79523.0,79512.0,0.44]
[1744312533064,0.251551,79507.0,79506.0,0.34]
[1744312533269,0.251545,79509.0,79506.0,0.46690758]
[1744312533533,0.251545,79509.0,79508.0,0.34]
[1744312533725,0.251531,79514.0,79510.0,0.34]
[1744312533910,0.251524,79516.0,79510.0,0.591537]
[1744312534088,0.251524,79516.0,79512.0,0.251531]
[1744312534475,0.012575,79520.0,79510.0,0.34]
[1744312534476,0.00012619,79523.0,79518.0,0.012575]
[1744312534675,0.02340593,79522.0,79521.0,0.26408]
[1744312534942,0.02340593,79522.0,79521.0,0.39098758]
[1744312535158,0.02340593,79522.0,79521.0,0.56234758]
[1744312535360,0.00012619,79523.0,79522.0,0.264077]
[1744312537520,0.00012619,79523.0,79522.0,0.73098458]
[1744312539530,0.251531,79513.0,79508.0,0.251546]
[1744312539732,0.264107,79513.0,79509.0,0.34]
[1744312539936,0.264107,79513.0,79507.0,0.17136]
[1744312539937,0.251535,79512.0,79507.0,0.17136]
[1744312540141,0.012575,79517.0,79510.0,0.25154]
[1744312540366,0.251534,79513.0,79509.0,0.012577]
[1744312540488,0.012577,79507.0,79497.0,1.306779]
[1744312540689,0.251553,79506.0,79503.0,0.25156]
[1744312540948,0.251553,79506.0,79497.0,1.306779]
[1744312540949,0.251599,79492.0,79486.0,0.01258]
[1744312541161,0.251599,79492.0,79479.0,0.1941]
[1744312541162,0.251634,79481.0,79477.0,0.251642]
[1744312541369,0.251634,79481.0,79473.0,0.012582]
[1744312541370,0.251622,79484.0,79483.0,0.1]
[1744312541569,0.251648,79476.0,79472.0,0.01243403]
[1744312541874,0.251632,79481.0,79476.0,0.251648]
[1744312542022,0.02340887,79480.0,79476.0,0.251648]
[1744312542228,0.251638,79479.0,79473.0,0.012582]
[1744312542522,0.251638,79479.0,79475.0,0.012582]
[1744312542712,0.251638,79479.0,79476.0,0.251647]
[1744312542911,0.251648,79476.0,79472.0,0.00042097]
[1744312543115,0.264239,79473.0,79472.0,0.00042097]
[1744312543561,0.41451036,79473.0,79472.0,0.00042097]
[1744312543739,0.264259,79467.0,79466.0,0.32621465]
[1744312543960,0.41453036,79467.0,79466.0,0.32634089]
[1744312544788,0.44075239,79467.0,79466.0,0.32634089]
[1744312545018,0.44075239,79467.0,79448.0,0.47972186]
[1744312545019,0.251711,79456.0,79448.0,0.47972186]
[1744312545164,0.42910821,79456.0,79455.0,0.4371323]
[1744312545361,0.42910821,79456.0,79448.0,0.47972186]
[1744312545362,0.27885985,79449.0,79448.0,0.47972186]
[1744312545564,0.40576743,79449.0,79448.0,0.47972186]
[1744312545945,0.40576743,79449.0,79430.0,0.0003354]
[1744312545946,0.01454085,79431.0,79430.0,4e-07]
[1744312546099,0.15403743,79431.0,79430.0,4e-07]
[1744312546295,0.23482176,79431.0,79430.0,0.00012674]
[1744312546599,0.24650294,79431.0,79430.0,0.00012674]
[1744312547140,0.24650294,79431.0,79430.0,7.4e-07]
[1744312548266,0.27894985,79422.0,79420.0,6e-07]
[1744312548482,0.27894985,79422.0,79417.0,0.32788206]
[1744312548483,0.264423,79418.0,79417.0,0.32788206]
[1744312548726,0.264423,79418.0,79417.0,0.3249661]
[1744312549591,0.012588,79435.0,79424.0,0.01259]
[1744312549802,0.012588,79439.0,79430.0,0.012589]
[1744312550014,0.012588,79439.0,79431.0,0.251789]
[1744312550265,0.16839228,79447.0,79444.0,0.251746]
[1744312550462,0.16839228,79447.0,79442.0,0.251753]
[1744312550673,0.16839228,79447.0,79443.0,0.012587]
[1744312550893,0.16839228,79447.0,79433.0,0.34]
[1744312550894,0.012587,79444.0,79433.0,0.34]
[1744312551107,0.251759,79442.0,79435.0,0.264364]
[1744312551317,0.25176,79441.0,79437.0,0.012588]
[1744312551550,0.012588,79440.0,79433.0,0.46690758]
[1744312551747,0.251799,79429.0,79423.0,0.251814]
[1744312551953,0.251798,79429.0,79424.0,0.12690758]
[1744312552153,0.01259,79428.0,79420.0,0.34]
[1744312552530,0.251786,79433.0,79418.0,0.00012615]
[1744312552531,0.251774,79437.0,79428.0,0.01259]
[1744312552768,0.25178,79435.0,79431.0,0.251789]
[1744312553002,0.251776,79436.0,79430.0,0.264381]
[1744312553244,0.251781,79434.0,79429.0,0.012589]
[1744312553504,0.012589,79430.0,79418.0,0.00012615]
[1744312553721,0.251815,79424.0,79422.0,0.34]
[1744312553949,0.251775,79436.0,79425.0,0.01259]
[1744312554237,0.251785,79433.0,79427.0,0.264391]
[1744312554462,0.251779,79435.0,79429.0,0.012589]
[1744312554682,0.251779,79435.0,79430.0,0.251792]
[1744312554915,0.251782,79434.0,79430.0,0.251792]
[1744312555139,0.251786,79433.0,79429.0,0.264384]
[1744312555616,0.264409,79424.0,79416.0,0.251837]
[1744312555832,0.01259,79424.0,79419.0,0.12690758]
[1744312556052,0.251821,79422.0,79419.0,0.12690758]
[1744312556293,0.01259,79426.0,79419.0,0.12690758]
[1744312556492,0.251806,79426.0,79422.0,0.251817]
[1744312556765,0.251806,79426.0,79421.0,0.264411]
[1744312557657,0.012588,79436.0,79427.0,0.01259]
[1744312557886,0.012589,79432.0,79423.0,0.01259]
[1744312558110,0.251786,79433.0,79424.0,0.01259]
[1744312558336,0.251792,79431.0,79428.0,0.2518]
[1744312558563,0.251792,79431.0,79428.0,0.1394238]
[1744312558788,0.264356,79439.0,79428.0,0.01259]
[1744312558996,0.25178,79435.0,79431.0,0.25179]
[1744312559170,0.264375,79433.0,79425.0,0.251808]
[1744312559407,0.251791,79431.0,79426.0,0.251806]
[1744312559617,0.251791,79431.0,79425.0,0.251808]
[1744312559618,0.26438,79431.0,79425.0,0.251808]
[1744312559811,0.26438,79431.0,79427.0,0.251802]
[1744312560201,0.251776,79436.0,79427.0,0.251802]
[1744312560202,0.012586,79450.0,79441.0,0.012587]
[1744312560446,0.012586,79450.0,79437.0,0.012588]
[1744312560447,0.012586,79448.0,79437.0,0.012588]
[1744312560627,0.012589,79434.0,79428.0,0.264389]
[1744312560864,0.264368,79435.0,79430.0,0.264383]
[1744312560997,0.012589,79433.0,79427.0,0.251801]
[1744312561179,0.251789,79432.0,79426.0,0.01259]
[1744312561379,0.251791,79431.0,79427.0,0.251802]
[1744312561630,0.251795,79430.0,79426.0,0.264395]
[1744312561803,0.264378,79432.0,79427.0,0.251803]
[1744312562034,0.44521328,79450.0,79419.0,0.34]
[1744312562035,0.251814,79424.0,79419.0,0.34]
[1744312562246,0.251825,79421.0,79419.0,0.34]
[1744312562445,0.251823,79422.0,79419.0,0.34]
[1744312562664,0.251825,79421.0,79419.0,0.34]
[1744312562840,0.251823,79422.0,79419.0,0.591828]
[1744312563054,0.251825,79420.0,79419.0,0.34]
[1744312563254,0.251823,79422.0,79419.0,0.251828]
[1744312563459,0.264413,79424.0,79421.0,0.34]
[1744312563658,0.251819,79423.0,79421.0,0.34]
[1744312563880,0.012589,79432.0,79423.0,0.264403]
[1744312564058,0.012589,79432.0,79421.0,0.34]
[1744312564059,0.251817,79423.0,79421.0,0.34]
[1744312564468,0.012589,79429.0,79420.0,0.012591]
[1744312564652,0.012588,79438.0,79428.0,0.01259]
[1744312564855,0.251789,79432.0,79428.0,0.264388]
[1744312565110,0.251791,79431.0,79427.0,0.01259]
[1744312565387,0.251819,79422.0,79421.0,0.46690758]
[1744312565614,0.251819,79422.0,79421.0,0.34]
[1744312565827,0.25181,79425.0,79420.0,0.34]
[1744312566179,0.25181,79425.0,79421.0,0.251821]
[1744312566501,0.251807,79426.0,79423.0,0.251815]
[1744312566704,0.251809,79425.0,79420.0,0.591823]
[1744312566911,0.01259,79424.0,79419.0,0.34]
[1744312567115,0.251827,79420.0,79418.0,0.00012615]
[1744312567314,0.25182,79422.0,79418.0,0.00012615]
[1744312567489,0.01259,79426.0,79418.0,0.00012615]
[1744312567490,0.0966,79458.0,79420.0,0.012591]
[1744312567705,0.251787,79433.0,79425.0,0.01259]
[1744312567916,0.503445,79453.0,79418.0,0.00012615]
[1744312567917,0.264406,79423.0,79422.0,0.0025179]
[1744312568120,0.01259,79422.0,79419.0,0.12690758]
[1744312568320,0.251825,79420.0,79419.0,0.12690758]
[1744312568722,0.251828,79419.0,79418.0,0.00012615]
[1744312569129,0.264419,79419.0,79418.0,0.00012615]
[1744312569571,0.251828,79419.0,79418.0,0.00012615]
[1744312570714,0.251807,79426.0,79424.0,0.251811]
[1744312570828,0.012589,79432.0,79418.0,0.12703373]
[1744312570829,0.012588,79438.0,79429.0,0.012589]
[1744312571034,0.251779,79435.0,79432.0,0.264376]
[1744312571232,0.012588,79438.0,79429.0,0.012589]
[1744312571233,0.251782,79434.0,79430.0,0.251794]
[1744312571507,0.012589,79431.0,79425.0,0.251808]
[1744312571716,0.28678145,79433.0,79428.0,0.01259]
[1744312571849,0.28678145,79433.0,79430.0,0.251792]
[1744312572050,0.03499745,79433.0,79432.0,0.264376]
[1744312572280,0.01167604,79433.0,79432.0,0.264376]
[1744312572891,0.01167604,79433.0,79432.0,0.39128358]
[1744312574128,0.251755,79443.0,79438.0,0.264354]
[1744312574376,0.251741,79447.0,79439.0,0.012588]
[1744312574573,0.012585,79454.0,79445.0,0.251743]
[1744312574689,0.012585,79454.0,79441.0,0.012587]
[1744312574690,0.251736,79448.0,79442.0,0.251755]
[1744312575076,0.012587,79446.0,79437.0,0.012588]
[1744312575208,0.03512367,79447.0,79444.0,0.251746]
[1744312575393,0.01170798,79446.0,79445.0,0.251743]
[1744312576148,0.01170798,79446.0,79445.0,0.17695052]
[1744312576731,0.251702,79459.0,79449.0,0.012586]
[1744312576937,0.251727,79451.0,79446.0,0.012587]
[1744312577316,0.251727,79451.0,79447.0,0.251737]